[Event "SAIF POWERTEC 45th BAN Ch 2019"]
[Site "Dhaka"]
[Date "2019.11.05"]
[Round "1.6"]
[White "Chowdhury, Sohel"]
[Black "Mohammad Minhaz Uddin"]
[Result "1/2-1/2"]
[ECO "C42"]
[WhiteElo "2096"]
[BlackElo "2322"]
[Annotator "RC"]
[PlyCount "38"]
[EventDate "2019.11.05"]
[EventCountry "BAN"]
[SourceTitle "playchess.com"]
[Source "ChessBase"]
[SourceQuality "1"]
[TimeControl "40/5400+30:1800+30"]

1. e4 {[%emt 0:00:00]} e5 {[%emt 0:00:00]} 2. Nf3 {[%emt 0:00:00]} Nf6 {[%emt 0:00:00]} 3. Nxe5 {[%emt 0:00:25]} d6 {[%emt 0:00:00]} 4. Nf3 {[%emt 0:00:17]} Nxe4 {[%emt 0:00:00]} 5. d4 {[%emt 0:00:57]} d5 {[%emt 0:00:00]} 6. Bd3 {[%emt 0:00:23]} Nc6 {[%emt 0:00:00]} 7. O-O {[%emt 0:01:51]} Bg4 {[%emt 0:00:05]} 8. c4 {[%emt 0:01:45]} Be7 {[%emt 0:01:29]} 9. Nc3 {[%emt 0:03:49]} Nf6 {[%emt 0:08:19]} 10. cxd5 {[%emt 0:00:31]} Nxd5 {[%emt 0:00:14]} 11. Re1 {[%emt 0:00:33]} Nf6 {[%emt 0:04:10]} 12. Bb5 {[%emt 0:35:22]} O-O {[%emt 0:03:49]} 13. Bxc6 {[%emt 0:02:02]} bxc6 {[%emt 0:00:03]} 14. h3 {[%emt 0:00:51]} Be6 {[%emt 0:16:13]} 15. Ne5 {[%emt 0:03:03]} Qe8 {[%emt 0:03:33]} 16. Qa4 {[%emt 0:05:51]} c5 {[%emt 0:03:50]} 17. Nc6 {[%emt 0:01:03]} cxd4 {[%emt 0:01:31]} 18. Nxe7+ {[%emt 0:00:21]} Qxe7 {[%emt 0:00:03]} 19. Qxd4 {[%emt 0:00:18]} Rfd8 {[%emt 0:01:39]} 1/2-1/2

[Event "SAIF POWERTEC 45th BAN Ch 2019"]
[Site "Dhaka"]
[Date "2019.11.05"]
[Round "1.10"]
[White "Md Emdadul, Haque"]
[Black "Islam, Khandaker Aminul"]
[Result "0-1"]
[ECO "A47"]
[WhiteElo "2070"]
[BlackElo "2229"]
[Annotator "ChessBase"]
[PlyCount "186"]
[EventDate "2019.11.05"]
[EventCountry "BAN"]
[SourceTitle "playchess.com"]
[Source "ChessBase"]
[SourceQuality "1"]
[TimeControl "40/5400+30:1800+30"]

1. d4 {[%emt 0:00:00]} Nf6 {[%emt 0:00:00]} 2. Bf4 {[%emt 0:00:17]} e6 {[%emt 0:00:00]} 3. e3 {[%emt 0:00:30]} b6 {[%emt 0:00:11]} 4. Nf3 {[%emt 0:01:00]} Bb7 {[%emt 0:00:11]} 5. Nbd2 {[%emt 0:00:39]} Be7 {[%emt 0:00:12]} 6. c3 {[%emt 0:03:36]} Nh5 {[%emt 0:00:38]} 7. Bg3 {[%emt 0:00:58]} d6 {[%emt 0:00:33]} 8. Bb5+ {[%emt 0:03:51]} Nd7 {[%emt 0:01:33]} 9. Qa4 {[%emt 0:06:41]} a6 {[%emt 0:00:44]} 10. Be2 {[%emt 0:08:00]} g6 {[%emt 0:01:28]} 11. Qb3 {[%emt 0:16:58]} O-O {[%emt 0:05:24]} 12. O-O {[%emt 0:02:24]} Bf6 {[%emt 0:18:16]} 13. Rad1 {[%emt 0:02:47]} Qe7 {[%emt 0:02:03]} 14. Rfe1 {[%emt 0:04:44]} e5 {[%emt 0:04:53]} 15. dxe5 {[%emt 0:01:21]} dxe5 {[%emt 0:00:35]} 16. Qc2 {[%emt 0:08:04]} e4 {[%emt 0:05:54]} 17. Nd4 {[%emt 0:01:57]} Nxg3 {[%emt 0:00:54]} 18. hxg3 {[%emt 0:00:56]} Rfe8 {[%emt 0:02:18]} 19. Nf1 {[%emt 0:04:14]} Be5 {[%emt 0:01:29]} 20. f4 {[%emt 0:01:46]} Bd6 {[%emt 0:02:16]} 21. b4 {[%emt 0:05:06]} Nf6 {[%emt 0:03:33]} 22. a3 {[%emt 0:01:01]} h5 {[%emt 0:01:55]} 23. Nb3 {[%emt 0:03:42]} Bc8 {[%emt 0:06:42]} 24. c4 {[%emt 0:02:06]} c5 {[%emt 0:07:54]} 25. Qd2 {[%emt 0:03:21]} Bc7 {[%emt 0:05:48]} 26. Qc3 {[%emt 0:00:42]} Bd6 {[%emt 0:06:45]} 27. Qd2 {[%emt 0:02:04]} Rd8 {[%emt 0:03:22]} 28. bxc5 {[%emt 0:00:26]} bxc5 {[%emt 0:00:23]} 29. Qa5 {[%emt 0:02:27]} Be6 {[%emt 0:02:27]} 30. Qc3 {[%emt 0:01:39]} Ne8 {[%emt 0:00:33]} 31. Rd2 {[%emt 0:00:52]} Rdb8 {[%emt 0:00:47]} 32. Red1 {[%emt 0:00:44]} Rb6 {[%emt 0:00:35]} 33. Rb2 {[%emt 0:01:49]} Qc7 {[%emt 0:02:47]} 34. Nbd2 {[%emt 0:00:47]} Rxb2 {[%emt 0:00:30]} 35. Qxb2 {[%emt 0:00:10]} Rb8 {[%emt 0:01:58]} 36. Qc2 {[%emt 0:01:23]} f5 {[%emt 0:00:23]} 37. Rb1 {[%emt 0:01:13]} Kf7 {[%emt 0:01:58]} 38. Kf2 {[%emt 0:02:15]} Be7 {[%emt 0:00:22]} 39. Qa4 {[%emt 0:00:37]} Rxb1 {[%emt 0:01:10]} 40. Nxb1 {[%emt 0:00:00]} Qb6 {[%emt 0:00:00]} 41. Nc3 {[%emt 0:00:59]} Nf6 {[%emt 0:03:29]} 42. Qc2 {[%emt 0:03:46]} Bf8 {[%emt 0:00:45]} 43. Nd2 {[%emt 0:01:29]} Bg7 {[%emt 0:02:05]} 44. Nd1 {[%emt 0:03:40]} Qa5 {[%emt 0:01:16]} 45. Nb1 {[%emt 0:02:33]} Nd7 {[%emt 0:02:26]} 46. Qb3 {[%emt 0:02:07]} Nb6 {[%emt 0:00:25]} 47. Ndc3 {[%emt 0:01:13]} Ke7 {[%emt 0:05:11]} 48. Kf1 {[%emt 0:03:09]} Bf6 {[%emt 0:00:37]} 49. Kf2 {[%emt 0:01:59]} Kd6 {[%emt 0:03:00]} 50. Kf1 {[%emt 0:02:24]} Kc6 {[%emt 0:02:12]} 51. Kf2 {[%emt 0:01:13]} Kc7 {[%emt 0:00:41]} 52. Kf1 {[%emt 0:02:13]} Bd8 {[%emt 0:03:47]} 53. Kf2 {[%emt 0:01:27]} Be7 {[%emt 0:00:21]} 54. Kf1 {[%emt 0:01:43]} h4 {[%emt 0:01:22]} 55. Kf2 {[%emt 0:01:19]} hxg3+ {[%emt 0:00:26]} 56. Kxg3 {[%emt 0:00:20]} g5 {[%emt 0:01:25]} 57. fxg5 {[%emt 0:01:19]} Bxg5 {[%emt 0:00:29]} 58. Kf2 {[%emt 0:00:41]} Bf6 {[%emt 0:01:32]} 59. g3 {[%emt 0:00:38]} Be5 {[%emt 0:00:57]} 60. Bf1 {[%emt 0:01:28]} Kc6 {[%emt 0:01:02]} 61. Be2 {[%emt 0:00:56]} Kd7 {[%emt 0:02:07]} 62. g4 {[%emt 0:02:08]} fxg4 {[%emt 0:02:38]} 63. Nxe4 {[%emt 0:00:35]} Kc7 {[%emt 0:02:07]} 64. Nbc3 {[%emt 0:03:03]} Bf5 {[%emt 0:04:28]} 65. Bf1 {[%emt 0:03:10]} Be6 {[%emt 0:03:22]} 66. Be2 {[%emt 0:01:01]} Kc8 {[%emt 0:01:36]} 67. Nd5 {[%emt 0:01:02]} Bxd5 {[%emt 0:01:19]} 68. Bxg4+ {[%emt 0:01:03]} Kc7 {[%emt 0:00:20]} 69. cxd5 {[%emt 0:00:11]} c4 {[%emt 0:00:18]} 70. d6+ {[%emt 0:01:44]} Bxd6 {[%emt 0:00:42]} 71. Qb2 {[%emt 0:00:10]} Qxa3 {[%emt 0:00:32]} 72. Qg7+ {[%emt 0:00:09]} Kc6 {[%emt 0:00:49]} 73. Bf3 {[%emt 0:00:13]} Kb5 {[%emt 0:00:21]} 74. Qb7 {[%emt 0:01:08]} Qb2+ {[%emt 0:00:32]} 75. Be2 {[%emt 0:00:14]} Bb4 {[%emt 0:00:41]} 76. Kf3 {[%emt 0:00:14]} Ka5 {[%emt 0:00:21]} 77. Qc7 {[%emt 0:00:38]} Qc1 {[%emt 0:00:41]} 78. Qe5+ {[%emt 0:01:17]} Ka4 {[%emt 0:00:13]} 79. Nf2 {[%emt 0:00:10]} Ka3 {[%emt 0:00:52]} 80. Qc7 {[%emt 0:00:53]} Nd5 {[%emt 0:00:25]} 81. Qxc4 {[%emt 0:00:27]} Qxe3+ {[%emt 0:00:18]} 82. Kg2 {[%emt 0:01:00]} Nf4+ {[%emt 0:00:32]} 83. Kf1 {[%emt 0:00:09]} a5 {[%emt 0:00:38]} 84. Qc2 {[%emt 0:00:53]} Bc3 {[%emt 0:01:42]} 85. Nd1 {[%emt 0:00:38]} Qh3+ {[%emt 0:00:28]} 86. Kf2 {[%emt 0:00:07]} Bd4+ {[%emt 0:00:13]} 87. Ke1 {[%emt 0:00:21]} Ng2+ {[%emt 0:00:50]} 88. Kd2 {[%emt 0:00:21]} Qh6+ {[%emt 0:00:06]} 89. Ne3 {[%emt 0:00:49]} Bxe3+ {[%emt 0:01:16]} 90. Kc3 {[%emt 0:00:34]} Qf6+ {[%emt 0:00:11]} 91. Kc4 {[%emt 0:00:38]} Qd4+ {[%emt 0:00:04]} 92. Kb5 {[%emt 0:00:25]} Qb6+ {[%emt 0:00:03]} 93. Kc4 {[%emt 0:00:33]} Qc5+ {[%emt 0:02:53] Kd4} 0-1

[Event "SAIF POWERTEC 45th BAN Ch 2019"]
[Site "Dhaka"]
[Date "2019.11.05"]
[Round "1.12"]
[White "Hossain, Monir"]
[Black "Rahman, Taibur"]
[Result "0-1"]
[ECO "A07"]
[WhiteElo "2050"]
[BlackElo "2196"]
[Annotator "ChessBase"]
[PlyCount "82"]
[EventDate "2019.11.05"]
[EventCountry "BAN"]
[SourceTitle "playchess.com"]
[Source "ChessBase"]
[SourceQuality "1"]
[TimeControl "40/5400+30:1800+30"]

1. Nf3 {[%emt 1:30:30]} c5 {[%emt 1:30:30]} 2. g3 {[%emt 0:00:30]} d5 {[%emt 0:00:30]} 3. Bg2 {[%emt 0:00:30]} Nf6 {[%emt 0:00:30]} 4. O-O {[%emt 0:00:30]} Nc6 {[%emt 0:00:30]} 5. d3 {[%emt 0:00:30]} g6 {[%emt 0:00:30]} 6. Na3 {[%emt 0:00:30]} Bg7 {[%emt 0:00:30]} 7. c4 {[%emt 0:00:30]} O-O {[%emt 0:00:30]} 8. cxd5 {[%emt 0:00:30]} Nxd5 {[%emt 0:00:30]} 9. Nc4 {[%emt 0:00:30]} b6 {[%emt 0:00:30]} 10. Ne3 {[%emt 0:00:30]} Nc7 {[%emt 0:00:30]} 11. Rb1 {[%emt 0:00:30]} Bb7 {[%emt 0:00:30]} 12. Bd2 {[%emt 0:00:30]} Rb8 {[%emt 0:00:30]} 13. Bc3 {[%emt 0:00:30]} e5 {[%emt 0:00:30]} 14. Nc4 {[%emt 0:00:30]} Qe7 {[%emt 0:00:30]} 15. Qc2 {[%emt 0:00:30]} Rfe8 {[%emt 0:00:30]} 16. a4 {[%emt 0:00:30]} Nd5 {[%emt 0:00:30]} 17. Nfd2 {[%emt 0:00:30]} Rbd8 {[%emt 0:00:30]} 18. Rbe1 {[%emt 0:00:30]} f5 {[%emt 0:00:30]} 19. Qb3 {[%emt 0:00:30]} Qf7 {[%emt 0:00:30]} 20. Bxd5 {[%emt 0:00:30]} Qxd5 {[%emt 0:00:30]} 21. Ne3 {[%emt 0:00:30]} Qxb3 {[%emt 0:00:30]} 22. Nxb3 {[%emt 0:00:30]} Nd4 {[%emt 0:00:30]} 23. Bxd4 {[%emt 0:00:30]} exd4 {[%emt 0:00:30]} 24. Nc4 {[%emt 0:00:30]} Re6 {[%emt 0:00:30]} 25. Nc1 {[%emt 0:00:30]} Bd5 {[%emt 0:00:30]} 26. b3 {[%emt 0:00:30]} a6 {[%emt 0:00:30]} 27. e4 {[%emt 0:00:30]} fxe4 {[%emt 0:00:30]} 28. dxe4 {[%emt 0:00:30]} Bxe4 {[%emt 0:00:30]} 29. f3 {[%emt 0:00:30]} Bd5 {[%emt 0:00:30]} 30. Rxe6 {[%emt 0:00:30]} Bxe6 {[%emt 0:00:30]} 31. Nd3 {[%emt 0:00:30]} b5 {[%emt 0:00:30]} 32. Na5 {[%emt 0:00:30]} Rc8 {[%emt 0:00:30]} 33. Rc1 {[%emt 0:00:30]} c4 {[%emt 0:00:30]} 34. Nf4 {[%emt 0:00:30]} Bf7 {[%emt 0:00:30]} 35. Nd3 {[%emt 0:00:30]} Be6 {[%emt 0:00:30]} 36. Nb4 {[%emt 0:00:30]} d3 {[%emt 0:00:30]} 37. axb5 {[%emt 0:00:30]} axb5 {[%emt 0:00:30]} 38. bxc4 {[%emt 0:00:30]} bxc4 {[%emt 0:00:30]} 39. Nac6 {[%emt 0:00:30]} d2 {[%emt 0:00:30]} 40. Rd1 {[%emt 0:00:30]} Rxc6 {[%emt 0:00:30]} 41. Nxc6 {[%emt 0:30:30]} c3 {[%emt 0:30:30]} 0-1

[Event "SAIF POWERTEC 45th BAN Ch 2019"]
[Site "Dhaka"]
[Date "2019.11.05"]
[Round "2.10"]
[White "Zia, Tahsin Tajwar"]
[Black "Ahmed, Sheikh Nasir"]
[Result "0-1"]
[ECO "A47"]
[WhiteElo "2080"]
[BlackElo "2185"]
[Annotator "ChessBase"]
[PlyCount "130"]
[EventDate "2019.11.05"]
[EventCountry "BAN"]
[SourceTitle "playchess.com"]
[Source "ChessBase"]
[SourceQuality "1"]
[TimeControl "40/5400+30:1800+30"]

1. d4 {[%emt 0:00:00]} e6 {[%emt 0:00:00]} 2. Nf3 {[%emt 0:00:00]} c5 {[%emt 0:00:16]} 3. c3 {[%emt 0:00:00]} Nf6 {[%emt 0:00:28]} 4. Bf4 {[%emt 0:00:05]} b6 {[%emt 0:00:44]} 5. e3 {[%emt 0:00:10]} Be7 {[%emt 0:00:46]} 6. Nbd2 {[%emt 0:00:08]} Bb7 {[%emt 0:01:25]} 7. h3 {[%emt 0:00:18]} O-O {[%emt 0:00:29]} 8. Bd3 {[%emt 0:04:22]} d6 {[%emt 0:00:28]} 9. O-O {[%emt 0:02:57]} Nbd7 {[%emt 0:00:52]} 10. Qe2 {[%emt 0:03:46]} Re8 {[%emt 0:01:33]} 11. e4 {[%emt 0:02:04]} a6 {[%emt 0:05:23]} 12. a4 {[%emt 0:01:14]} Nf8 {[%emt 0:00:20]} 13. Rfd1 {[%emt 0:07:48]} Ng6 {[%emt 0:03:54]} 14. Be3 {[%emt 0:01:25]} Qc7 {[%emt 0:04:13]} 15. Ne1 {[%emt 0:07:46]} e5 {[%emt 0:03:34]} 16. d5 {[%emt 0:01:40]} Kh8 {[%emt 0:16:26]} 17. b4 {[%emt 0:08:49]} Nd7 {[%emt 0:06:22]} 18. Nc4 {[%emt 0:01:40]} Nf4 {[%emt 0:09:57]} 19. Bxf4 {[%emt 0:16:50]} exf4 {[%emt 0:00:03]} 20. Rac1 {[%emt 0:07:52]} Ne5 {[%emt 0:05:42]} 21. Nxe5 {[%emt 0:02:28]} dxe5 {[%emt 0:00:26]} 22. b5 {[%emt 0:02:30]} a5 {[%emt 0:06:22]} 23. Nf3 {[%emt 0:03:37]} Rad8 {[%emt 0:03:19]} 24. Kh2 {[%emt 0:01:32]} Rd7 {[%emt 0:03:18]} 25. Rg1 {[%emt 0:01:47]} Bd8 {[%emt 0:00:27]} 26. c4 {[%emt 0:02:17]} Rd6 {[%emt 0:01:01]} 27. g4 {[%emt 0:01:51]} fxg3+ {[%emt 0:03:17]} 28. fxg3 {[%emt 0:01:32]} Bc8 {[%emt 0:01:53]} 29. Rcf1 {[%emt 0:03:18]} Rf6 {[%emt 0:03:54]} 30. g4 {[%emt 0:05:01]} Rg6 {[%emt 0:11:16]} 31. Rg3 {[%emt 0:02:04]} Qd6 {[%emt 0:01:52]} 32. Qe3 {[%emt 0:01:54]} h6 {[%emt 0:01:31]} 33. Kg2 {[%emt 0:00:27]} Kh7 {[%emt 0:00:49]} 34. Kf2 {[%emt 0:01:52]} Rh8 {[%emt 0:00:26]} 35. Rfg1 {[%emt 0:00:17]} Kg8 {[%emt 0:00:26]} 36. h4 {[%emt 0:00:13]} Rf6 {[%emt 0:02:16]} 37. Ke2 {[%emt 0:02:21]} Rf4 {[%emt 0:00:10]} 38. R1g2 {[%emt 0:00:57]} Kf8 {[%emt 0:00:43]} 39. Kd2 {[%emt 0:00:31]} Ke8 {[%emt 0:01:44]} 40. Qg1 {[%emt 0:00:00]} Kd7 {[%emt 0:00:00]} 41. Qa1 {[%emt 0:01:48]} Re8 {[%emt 0:02:14]} 42. g5 {[%emt 0:01:34]} hxg5 {[%emt 0:04:49]} 43. hxg5 {[%emt 0:01:00]} Kc7 {[%emt 0:00:32]} 44. Ng1 {[%emt 0:03:59]} Kb8 {[%emt 0:04:42]} 45. Rf3 {[%emt 0:28:46]} Qg6 {[%emt 0:03:11]} 46. Rxf4 {[%emt 0:00:00]} Bxg5 {[%emt 0:02:45]} 47. Kc2 {[%emt 0:00:00]} exf4 {[%emt 0:00:13]} 48. Nf3 {[%emt 0:00:00]} f6 {[%emt 0:01:08]} 49. Qg1 {[%emt 0:00:00]} Rxe4 {[%emt 0:04:52]} 50. Kc3 {[%emt 0:00:00]} Qe8 {[%emt 0:01:56]} 51. Bxe4 {[%emt 0:00:00]} Qxe4 {[%emt 0:00:14]} 52. Nxg5 {[%emt 0:00:00]} fxg5 {[%emt 0:01:38]} 53. Rxg5 {[%emt 0:00:00]} Qf3+ {[%emt 0:02:37]} 54. Kd2 {[%emt 0:00:00]} Qb3 {[%emt 0:00:58]} 55. Qc1 {[%emt 0:00:00]} Qe3+ {[%emt 0:01:02]} 56. Kc2 {[%emt 0:00:00]} Bf5+ {[%emt 0:00:56]} 57. Kb2 {[%emt 0:00:13]} Qd4+ {[%emt 0:03:01]} 58. Qc3 {[%emt 0:01:02]} g6 {[%emt 0:00:01]} 59. Kb3 {[%emt 0:03:01]} Kc7 {[%emt 0:01:16]} 60. Rg2 {[%emt 0:00:50]} Kd6 {[%emt 0:01:55]} 61. Qf3 {[%emt 0:01:42]} Bd3 {[%emt 0:01:20]} 62. Rg4 {[%emt 0:01:07]} Qxc4+ {[%emt 0:00:23]} 63. Ka3 {[%emt 0:00:24]} Qc3+ {[%emt 0:00:09]} 64. Ka2 {[%emt 0:00:05]} Bc4+ {[%emt 0:00:06]} 65. Kb1 {[%emt 0:00:15]} Qxf3 {[%emt 0:00:07]} 0-1

[Event "SAIF POWERTEC 45th BAN Ch 2019"]
[Site "Dhaka"]
[Date "2019.11.05"]
[Round "2.11"]
[White "Anata, Choudhury"]
[Black "Md Emdadul, Haque"]
[Result "0-1"]
[ECO "C77"]
[WhiteElo "2159"]
[BlackElo "2070"]
[Annotator "ChessBase"]
[PlyCount "70"]
[EventDate "2019.11.05"]
[EventCountry "BAN"]
[SourceTitle "playchess.com"]
[Source "ChessBase"]
[SourceQuality "1"]
[TimeControl "40/5400+30:1800+30"]

1. e4 {[%emt 1:30:30]} e5 {[%emt 1:30:30]} 2. Nf3 {[%emt 0:00:30]} Nc6 {[%emt 0:00:30]} 3. Bb5 {[%emt 0:00:30]} a6 {[%emt 0:00:30]} 4. Ba4 {[%emt 0:00:30]} Nf6 {[%emt 0:00:30]} 5. Nc3 {[%emt 0:00:30]} b5 {[%emt 0:00:30]} 6. Bb3 {[%emt 0:00:30]} Bc5 {[%emt 0:00:30]} 7. a4 {[%emt 0:00:30]} b4 {[%emt 0:00:30]} 8. Nd5 {[%emt 0:00:30]} O-O {[%emt 0:00:30]} 9. d3 {[%emt 0:00:30]} h6 {[%emt 0:00:30]} 10. O-O {[%emt 0:00:30]} d6 {[%emt 0:00:30]} 11. c3 {[%emt 0:00:30]} Bg4 {[%emt 0:00:30]} 12. Nxf6+ {[%emt 0:00:30]} Qxf6 {[%emt 0:00:30]} 13. Bd5 {[%emt 0:00:30]} Bd7 {[%emt 0:00:30]} 14. d4 {[%emt 0:00:30]} exd4 {[%emt 0:00:30]} 15. cxd4 {[%emt 0:00:30]} Nxd4 {[%emt 0:00:30]} 16. Bxa8 {[%emt 0:00:30]} Rxa8 {[%emt 0:00:30]} 17. Be3 {[%emt 0:00:30]} Nxf3+ {[%emt 0:00:30]} 18. Qxf3 {[%emt 0:00:30]} Qxb2 {[%emt 0:00:30]} 19. e5 {[%emt 0:00:30]} Re8 {[%emt 0:00:30]} 20. Bxc5 {[%emt 0:00:30]} dxc5 {[%emt 0:00:30]} 21. Qd3 {[%emt 0:00:30]} Bc8 {[%emt 0:00:30]} 22. e6 {[%emt 0:00:30]} Bxe6 {[%emt 0:00:30]} 23. Qxa6 {[%emt 0:00:30]} Qe5 {[%emt 0:00:30]} 24. Qb5 {[%emt 0:00:30]} c6 {[%emt 0:00:30]} 25. Qxc6 {[%emt 0:00:30]} Rc8 {[%emt 0:00:30]} 26. Qb7 {[%emt 0:00:30]} b3 {[%emt 0:00:30]} 27. a5 {[%emt 0:00:30]} b2 {[%emt 0:00:30]} 28. Rae1 {[%emt 0:00:30]} Qb8 {[%emt 0:00:30]} 29. Qe4 {[%emt 0:00:30]} c4 {[%emt 0:00:30]} 30. Qc2 {[%emt 0:00:30]} c3 {[%emt 0:00:30]} 31. Re3 {[%emt 0:00:30]} Ba2 {[%emt 0:00:30]} 32. Ree1 {[%emt 0:00:30]} Bb3 {[%emt 0:00:30]} 33. Qb1 {[%emt 0:00:30]} Bc4 {[%emt 0:00:30]} 34. Qc2 {[%emt 0:00:30]} Qb3 {[%emt 0:00:30]} 35. Re2 {[%emt 0:00:30]} Qxc2 {[%emt 0:00:30]} 0-1

[Event "SAIF POWERTEC 45th BAN Ch 2019"]
[Site "Dhaka"]
[Date "2019.11.03"]
[Round "2.13"]
[White "S M Sharon"]
[Black "Hossain, Monir"]
[Result "1-0"]
[ECO "A06"]
[WhiteElo "2092"]
[BlackElo "2050"]
[Annotator "NA RC"]
[PlyCount "125"]
[EventDate "2019.11.02"]
[EventType "swiss"]
[EventRounds "10"]
[EventCountry "BAN"]
[SourceTitle "playchess.com"]
[Source "ChessBase"]
[SourceQuality "1"]
[TimeControl "40/5400+30:1800+30"]

1. b3 d5 2. Bb2 c5 3. Nf3 Nc6 4. e3 Bg4 5. h3 Bh5 6. Bb5 f6 7. d4 Qa5+ 8. Nc3 e6 9. g4 Bf7 10. a3 a6 11. Bxc6+ bxc6 12. dxc5 Qxc5 13. Qe2 Ne7 14. Na4 Qa5+ 15. Qd2 Qxd2+ 16. Nxd2 e5 17. b4 Ng6 18. Nb3 Bd6 19. Na5 Ne7 20. Ke2 Rb8 21. Nb3 Be6 22. Bc3 Kf7 23. Bd2 h5 24. f3 Rh7 25. Nac5 Bc8 26. Kd3 Ra8 27. Rag1 e4+ 28. fxe4 hxg4 29. hxg4 Rxh1 30. Rxh1 Bxg4 31. exd5 cxd5 32. c4 dxc4+ 33. Kxc4 Be2+ 34. Kc3 Be5+ 35. Kc2 Nc6 36. Bc3 Re8 37. Bxe5 Rxe5 38. Nd4 Nxd4+ 39. exd4 Rd5 40. Re1 Bb5 41. a4 Bd7 42. Kc3 Bc8 43. Kc4 Rd8 44. b5 axb5+ 45. axb5 g5 46. b6 g4 47. b7 Bxb7 48. Nxb7 Rb8 49. Nc5 f5 50. d5 g3 51. Nd7 Rg8 52. Ne5+ Kf6 53. Nf3 f4 54. d6 Kf5 55. Kd5 Kg4 56. Ne5+ Kh3 57. Ke4 g2 58. d7 Kg3 59. Rd1 Rd8 60. Nf3 Kg4 61. Rd3 Kg3 62. Ne1+ f3 63. Nxf3 1-0

[Event "SAIF POWERTEC 45th BAN Ch 2019"]
[Site "Dhaka"]
[Date "2019.11.03"]
[Round "2.14"]
[White "Md, Sariatullah"]
[Black "Hamid, Rani"]
[Result "1-0"]
[ECO "A01"]
[WhiteElo "2063"]
[BlackElo "1916"]
[Annotator "NA RC"]
[PlyCount "87"]
[EventDate "2019.11.02"]
[EventType "swiss"]
[EventRounds "10"]
[EventCountry "BAN"]
[SourceTitle "playchess.com"]
[Source "ChessBase"]
[SourceQuality "1"]
[TimeControl "40/5400+30:1800+30"]

1. b3 c5 2. Bb2 Nc6 3. e3 b6 4. c4 e6 5. Nf3 Nf6 6. a3 Be7 7. Bd3 d6 8. Bc2 e5 9. h3 h6 10. d4 Qc7 11. Nc3 exd4 12. exd4 cxd4 13. Nxd4 Nxd4 14. Qxd4 Bb7 15. O-O-O Bc6 16. Rhe1 O-O-O 17. Nd5 Nxd5 18. cxd5 Bf6 19. Qb4 Bxb2+ 20. Kxb2 Bb7 21. Bf5+ Kb8 22. Rc1 Qxc1+ 23. Rxc1 Bxd5 24. Qc3 g6 25. Qc7+ Ka8 26. Bd7 Bxg2 27. Bc6+ Bxc6 28. Qxc6+ Kb8 29. Qc7+ Ka8 30. Qxf7 Rhf8 31. Qd5+ Kb8 32. Rc2 Rf6 33. a4 Rf5 34. Qc6 Rf7 35. a5 bxa5 36. Qb5+ Rb7 37. Qxa5 Rb6 38. Rc6 Kb7 39. Rxb6+ axb6 40. Qd5+ Kc7 41. Qf7+ Rd7 42. Qxg6 d5 43. Qxh6 d4 44. Kc2 1-0

[Event "SAIF POWERTEC 45th BAN Ch 2019"]
[Site "Dhaka"]
[Date "2019.11.03"]
[Round "2.15"]
[White "Nayem, Haque"]
[Black "Hossain, Delwar"]
[Result "1-0"]
[ECO "B21"]
[WhiteElo "1911"]
[BlackElo "2080"]
[Annotator "NA RC"]
[PlyCount "103"]
[EventDate "2019.11.02"]
[EventType "swiss"]
[EventRounds "10"]
[EventCountry "BAN"]
[SourceTitle "playchess.com"]
[Source "ChessBase"]
[SourceQuality "1"]
[TimeControl "40/5400+30:1800+30"]

1. e4 c5 2. d4 cxd4 3. c3 dxc3 4. Nxc3 Nc6 5. Bc4 Nf6 6. Nf3 e6 7. O-O a6 8. Qe2 d6 9. Rd1 Qc7 10. Bf4 Ne5 11. Bxe5 dxe5 12. Rac1 Qb8 13. Bb5+ axb5 14. Nxb5 Bc5 15. Rxc5 O-O 16. Nxe5 b6 17. Nc6 Qf4 18. Ne7+ Kh8 19. Rxc8 Raxc8 20. Nxc8 Rxc8 21. Nd6 Rf8 22. f3 h6 23. Qd2 Qxd2 24. Rxd2 Kg8 25. Nc4 Rb8 26. Ne5 Kf8 27. Nd7+ Nxd7 28. Rxd7 Rc8 29. Rd2 Ke7 30. Kf2 e5 31. Ke3 f6 32. a3 g6 33. g4 Ke6 34. Rd3 Rb8 35. h4 b5 36. Kd2 b4 37. axb4 Rxb4 38. Kc3 Rb6 39. b4 Rb8 40. Rd5 f5 41. Ra5 fxe4 42. fxe4 Rd8 43. Ra6+ Kf7 44. b5 Rd1 45. b6 Rb1 46. Kc4 Ke6 47. b7+ Kf7 48. Ra7 Ke6 49. Kc5 Rc1+ 50. Kb6 Rb1+ 51. Kc7 Rc1+ 52. Kb8 1-0

[Event "SAIF POWERTEC 45th BAN Ch 2019"]
[Site "Dhaka"]
[Date "2019.11.04"]
[Round "3.14"]
[White "Hossain, Delwar"]
[Black "Hossain, Monir"]
[Result "1-0"]
[ECO "C02"]
[WhiteElo "2080"]
[BlackElo "2050"]
[Annotator "NA RC"]
[PlyCount "117"]
[EventDate "2019.11.02"]
[EventType "swiss"]
[EventRounds "10"]
[EventCountry "BAN"]
[SourceTitle "playchess.com"]
[Source "ChessBase"]
[SourceQuality "1"]
[TimeControl "40/5400+30:1800+30"]

1. e4 c5 2. Nf3 e6 3. c3 d5 4. e5 Nc6 5. d4 Qb6 6. Bd3 Bd7 7. dxc5 Bxc5 8. O-O Nh6 9. h3 O-O-O 10. b4 Be7 11. a4 Qc7 12. Bf4 f6 13. Re1 fxe5 14. Nxe5 Bd6 15. Nxc6 Qxc6 16. Be3 Kb8 17. b5 Qc8 18. Qb3 Nf7 19. Nd2 Ne5 20. Bf1 Nf7 21. a5 Bc5 22. Bd4 e5 23. Bxe5+ Nxe5 24. Rxe5 Rhf8 25. Nf3 Qc7 26. Qxd5 Bd6 27. Rg5 Bc6 28. b6 Qe7 29. bxa7+ Ka8 30. Qb3 Bxf3 31. Rb5 Bc6 32. a6 Rd7 33. axb7+ Rxb7 34. Rxb7 Qxb7 35. Qc4 Bd5 36. Qd4 Rd8 37. Ra6 Bc7 38. Qh4 Bc6 39. Ra1 Bb6 40. Re1 Bd5 41. Re7 Qc6 42. c4 Bg8 43. Be2 Rf8 44. Bf3 Rxf3 45. gxf3 Bxa7 46. Rxg7 Bxc4 47. Qf4 Bb8 48. Qd4 Bc7 49. Qe4 Bd5 50. Qg4 Be6 51. Rxc7 Qxc7 52. Qxe6 Kb7 53. Kg2 Qg7+ 54. Qg4 Qh8 55. h4 Kc7 56. h5 h6 57. Qg6 Kd7 58. f4 Ke7 59. Qe4+ 1-0

[Event "SAIF POWERTEC 45th BAN Ch 2019"]
[Site "Dhaka"]
[Date "2019.11.04"]
[Round "3.15"]
[White "Hamid, Rani"]
[Black "Zia, Tahsin Tajwar"]
[Result "0-1"]
[ECO "B59"]
[WhiteElo "1916"]
[BlackElo "2058"]
[Annotator "NA RC"]
[PlyCount "48"]
[EventDate "2019.11.02"]
[EventType "swiss"]
[EventRounds "10"]
[EventCountry "BAN"]
[SourceTitle "playchess.com"]
[Source "ChessBase"]
[SourceQuality "1"]
[TimeControl "40/5400+30:1800+30"]

1. e4 c5 2. Nf3 d6 3. d4 cxd4 4. Nxd4 Nf6 5. Nc3 Nc6 6. Be2 e5 7. Nb3 Be7 8. Bg5 O-O 9. O-O a5 10. a4 Be6 11. Bxf6 Bxf6 12. Nd5 Bg5 13. Kh1 Ne7 14. Qd3 f5 15. Nxe7+ Qxe7 16. Rad1 Rad8 17. exf5 Bxf5 18. Qd5+ Kh8 19. Bd3 Be6 20. Qe4 g6 21. Nxa5 Bf4 22. Qb4 Bg4 23. Rc1 Qh4 24. h3 Bf3 0-1